bitfinex/quotes_ETHUSD_20250508
["timestamp","ask_amount","ask_price","bid_price","bid_amount"]
[1746733745017,4.78146406,2091.5,2091.1,8.83013429]
[1746733745212,4.78146406,2091.5,2091.1,4.78213429]
[1746733745441,4.8740419,2092.1,2091.1,1.95884139]
[1746733745442,0.9210419,2092.1,2091.1,1.95884139]
[1746733745667,4.78055806,2091.9,2091.4,4.78145943]
[1746733745807,4.78123918,2091.6,2091.2,0.43289872]
[1746733746010,3.954,2091.7,2091.3,4.78150711]
[1746733746211,8.73494579,2091.7,2091.3,4.78150711]
[1746733746514,5.30554058,2091.7,2091.2,0.43289872]
[1746733746729,4.78168151,2091.4,2091.3,0.43289872]
[1746733747807,4.78174143,2091.3,2091.0,0.8077]
[1746733748106,3.954,2091.3,2091.0,0.8077]
[1746733748743,8.73585243,2091.3,2091.0,0.8077]
[1746733749242,4.7816258,2091.4,2091.0,1.241392]
[1746733749447,3.954,2091.4,2091.0,6.02367947]
[1746733749648,4.78032349,2092.0,2091.0,0.48151407]
[1746733749852,4.78135127,2091.5,2091.0,5.21599519]
[1746733750156,3.954,2091.8,2091.1,0.433692]
[1746733750319,0.9210419,2092.1,2091.1,0.433692]
[1746733750649,3.954,2092.4,2091.3,4.78171472]
[1746733750850,4.77976678,2092.2,2091.6,4.78093992]
[1746733751017,4.78080949,2091.7,2091.4,4.497692]
[1746733751218,4.78080949,2091.7,2091.4,4.397692]
[1746733751451,4.78104482,2091.6,2091.4,0.433692]
[1746733751618,0.7549,2092.0,2091.5,4.78122976]
[1746733751822,4.78037079,2091.9,2091.5,5.21492176]
[1746733752044,8.73424137,2092.0,2091.6,4.78087867]
[1746733752243,8.73424137,2092.0,2091.5,0.433692]
[1746733752244,3.954,2092.0,2091.5,0.433692]
[1746733752479,4.78057134,2091.9,2091.5,0.433692]
[1746733752789,3.954,2092.0,2091.5,0.48150148]
[1746733753082,3.954,2092.0,2091.6,0.433692]
[1746733753083,5.25856728,2091.9,2091.6,0.433692]
[1746733753439,4.78061685,2091.8,2091.6,0.433692]
[1746733753787,0.47805713,2091.9,2091.6,5.21468486]
[1746733753944,5.25851944,2091.9,2091.7,0.433692]
[1746733754642,0.47805713,2091.9,2091.7,0.433692]
[1746733754873,4.78057175,2091.8,2091.7,0.433692]
[1746733755146,5.25858453,2091.9,2091.7,0.433692]
[1746733755360,0.47805713,2091.9,2091.7,0.433692]
[1746733755964,5.25855224,2091.9,2091.7,0.433692]
[1746733756162,5.71232697,2091.8,2091.7,0.433692]
[1746733757085,0.93175522,2091.8,2091.7,0.433692]
[1746733757383,5.25840941,2091.9,2091.7,0.433692]
[1746733757968,9.31740941,2091.9,2091.7,0.433692]
[1746733758389,4.059,2091.9,2091.7,0.433692]
[1746733758547,4.7802123,2092.0,2091.8,0.433692]
[1746733758753,4.7860787,2091.9,2091.8,0.433692]
[1746733758952,0.00573548,2091.9,2091.8,0.433692]
[1746733759149,0.00573548,2091.9,2091.8,6.02546375]
[1746733759388,0.00573548,2091.9,2091.8,24.91155777]
[1746733759590,0.00573548,2091.9,2091.8,25.01315914]
[1746733759761,0.00573548,2091.9,2091.8,21.80301514]
[1746733759957,4.77876945,2092.6,2092.1,4.77969952]
[1746733760288,4.77876945,2092.6,2092.2,4.011]
[1746733760462,4.77876945,2092.6,2092.2,8.79047542]
[1746733760666,4.77868065,2092.7,2092.2,4.82726613]
[1746733760866,0.47786807,2092.7,2092.3,4.92881746]
[1746733761070,5.25642683,2092.7,2092.4,0.433692]
[1746733761305,4.77897252,2092.5,2092.4,0.433692]
[1746733761597,4.77896515,2092.6,2092.4,0.433692]
[1746733762088,4.77896515,2092.6,2092.5,0.433692]
[1746733762300,0.7654,2093.4,2092.7,4.77829144]
[1746733762587,0.95530262,2093.5,2092.9,0.7602]
[1746733762787,5.54153388,2093.8,2092.9,5.58594497]
[1746733763002,0.7654,2093.8,2093.0,4.7776815]
[1746733763208,0.05,2094.0,2093.1,0.04776967]
[1746733763415,0.05,2094.0,2093.1,6.543692]
[1746733763693,0.54011,2094.0,2093.1,6.69302767]
[1746733763879,5.31583708,2094.0,2093.1,11.32119282]
[1746733764103,9.37383708,2094.0,2093.2,0.48146372]
[1746733764391,0.54011,2094.0,2093.3,4.8248968]
[1746733764615,0.54011,2094.0,2093.5,4.77651149]
[1746733764756,0.05,2094.0,2093.6,0.0477596]
[1746733764953,0.05,2094.0,2093.6,6.05506613]
[1746733765195,0.05,2094.0,2093.6,6.0073533]
[1746733765361,0.05,2094.0,2093.7,4.011]
[1746733765759,0.09675847,2093.9,2093.7,4.011]
[1746733766105,0.05,2094.0,2093.4,4.82464041]
[1746733766267,0.05,2094.0,2093.5,4.77659998]
[1746733766469,0.09720954,2093.9,2093.8,4.77600534]
[1746733767029,0.05,2094.0,2093.9,4.77577725]
[1746733767204,0.05,2094.0,2093.8,4.77593578]
[1746733767363,0.05,2094.0,2093.6,0.7764]
[1746733767562,0.05,2094.0,2093.6,0.82415798]
[1746733767856,0.09720954,2093.9,2093.7,4.015]
[1746733768316,0.49228683,2093.9,2093.7,4.015]
[1746733768597,0.05,2094.0,2093.7,8.83899575]
[1746733768598,0.0968882,2093.8,2093.7,8.83899575]
[1746733768892,0.05,2094.0,2093.9,4.77577725]
[1746733769488,0.05,2094.0,2093.8,5.57438224]
[1746733769659,0.05,2094.0,2093.8,0.7985]
[1746733769858,0.05,2094.0,2093.4,10.94883624]
[1746733769859,0.05,2094.0,2093.5,4.77668975]
[1746733770057,0.10027569,2093.9,2093.4,5.58656709]
[1746733770299,0.10027569,2093.9,2093.4,5.58648488]
[1746733770596,0.10027569,2093.9,2093.4,0.8097]
[1746733770901,0.10027569,2093.9,2093.4,5.58646421]
[1746733771101,0.10027569,2093.9,2093.8,4.77600534]
[1746733771284,0.10027569,2093.9,2093.4,5.58661171]
[1746733771499,0.10027569,2093.9,2093.8,4.77600534]
[1746733771968,0.05,2094.0,2093.9,4.77577725]
[1746733772405,0.05,2094.0,2093.9,8.76277725]
[1746733772718,0.1505718,2094.0,2093.9,8.76277725]
[1746733772901,0.05,2094.0,2093.9,8.76277725]
[1746733773399,0.15135,2094.0,2093.9,8.76277725]
[1746733773603,0.05,2094.0,2093.9,8.76277725]
[1746733774720,0.05,2094.0,2093.9,10.50524535]
[1746733774921,0.8737,2095.0,2094.1,4.77532114]
[1746733775127,0.8737,2095.0,2094.6,4.77402232]
[1746733775309,0.10575412,2094.9,2094.5,3.969]
[1746733775511,0.10575412,2094.9,2094.7,4.77382172]
[1746733775719,0.10575412,2094.9,2094.8,4.77372541]
[1746733775890,0.10575412,2094.9,2094.8,4.82146507]
[1746733776090,0.05,2095.0,2094.9,4.77349754]
[1746733776292,0.05,2095.0,2094.5,0.7603]
[1746733776592,0.10938588,2094.9,2094.6,4.77404351]
[1746733776823,0.10938588,2094.9,2094.5,3.964]
[1746733777139,0.05,2095.0,2094.6,4.7717]
[1746733777304,0.05,2095.0,2094.6,9.54580868]
[1746733777498,0.05,2095.0,2094.8,4.7737061]
[1746733777706,0.10835339,2094.9,2094.7,4.7737697]
[1746733777905,0.10835339,2094.9,2094.1,9.17196417]
[1746733778098,4.88186974,2094.9,2093.9,4.77558112]
[1746733778316,4.77452508,2094.5,2094.0,4.77537215]
[1746733778638,4.77452508,2094.5,2093.9,3.979]
[1746733778639,0.10639792,2094.4,2093.9,3.979]
[1746733778802,0.10639792,2094.4,2094.3,4.77486511]
[1746733779011,0.05,2095.0,2094.2,4.77500239]
[1746733779198,0.10824691,2094.9,2094.0,4.0227465]
[1746733779397,4.77389718,2094.8,2094.2,4.77495761]
[1746733779619,4.88142098,2094.7,2094.2,4.77495761]
[1746733779814,0.05,2096.0,2095.8,4.77144765]
[1746733780053,0.05,2096.0,2095.8,9.03244765]
[1746733780338,0.05,2096.0,2095.7,0.8038]
[1746733780339,0.05,2096.0,2095.3,0.8038]
[1746733780505,0.05,2096.0,2095.4,4.272]
[1746733780833,0.05,2096.0,2095.5,0.04771776]
[1746733781031,4.8211426,2096.0,2095.6,5.0948]
[1746733781235,0.10824655,2095.8,2095.6,5.0948]
[1746733781397,0.10824655,2095.8,2095.7,4.81939129]
[1746733781592,0.05,2096.0,2095.8,4.77144765]
[1746733781941,6.37269117,2095.9,2095.7,4.7714546]
[1746733782349,4.5626415,2095.9,2095.8,16.32644765]
[1746733782665,0.05,2096.0,2095.8,16.32644765]
[1746733782666,0.05,2097.0,2096.5,4.76972517]
[1746733782820,0.05,2097.0,2096.6,9.91542701]
[1746733783233,0.05,2097.0,2096.6,0.8038]
[1746733783466,0.05,2097.0,2096.6,16.93565218]
[1746733783630,0.05,2097.0,2096.6,22.85706444]
[1746733784153,0.05,2097.0,2096.4,4.345]
[1746733784962,4.76904341,2096.9,2096.5,0.04769391]
[1746733785260,0.05,2097.0,2096.5,4.44369322]
[1746733785461,0.05,2097.0,2096.5,4.396]
[1746733785634,4.81893646,2097.0,2096.5,9.16578983]
[1746733786129,2.77290219,2096.7,2096.2,0.7589]
[1746733786317,2.52082017,2096.7,2096.4,0.77682079]
[1746733786524,2.52082017,2096.7,2096.3,4.77018341]
[1746733786719,2.52082017,2096.7,2096.4,4.506]
[1746733787228,2.52082017,2096.7,2096.4,4.55368916]
[1746733787428,2.52082017,2096.7,2096.5,4.81750896]
[1746733787618,2.52082017,2096.7,2096.6,4.76962701]
[1746733787819,2.52082017,2096.7,2096.6,4.81731697]
[1746733788234,2.52082017,2096.7,2096.6,9.30762701]
[1746733788569,2.52082017,2096.7,2096.4,4.77006944]
[1746733788775,2.77290219,2096.7,2096.5,4.541]
[1746733789062,2.77290219,2096.7,2096.2,0.04269744]
[1746733789269,4.770259,2096.4,2096.1,4.542]
[1746733789563,4.77053716,2096.2,2096.1,4.542]
[1746733789958,5.53770988,2096.4,2095.8,0.04770772]
[1746733790158,4.77103094,2096.0,2095.5,4.77202504]
[1746733790360,4.77132468,2095.9,2095.5,4.53]
[1746733790566,4.77132468,2095.9,2095.5,4.33]
[1746733791140,4.77109937,2096.0,2095.5,9.10198809]
[1746733791444,4.77109937,2096.0,2095.1,4.7730347]
[1746733791445,4.77235849,2095.4,2093.8,0.7699]
[1746733791753,0.8047,2094.9,2094.2,4.77494725]
[1746733792070,4.77374549,2094.8,2094.3,0.04774086]
[1746733792281,0.8047,2094.9,2094.3,4.82247819]
[1746733792439,0.8047,2095.2,2094.3,2.03194993]
[1746733792778,0.8047,2095.2,2094.1,6.17196417]
[1746733792779,4.77420993,2094.6,2094.1,4.77521768]
[1746733792941,4.77460346,2094.5,2094.2,0.04774461]
[1746733793141,4.77466408,2094.4,2094.0,4.9350664]
[1746733793338,4.77351777,2094.9,2093.9,7.89640916]
[1746733793573,5.57759568,2095.2,2094.0,0.04774666]
[1746733793574,0.8047,2095.2,2094.0,0.04774666]
[1746733793777,2.52082017,2096.7,2096.0,0.7699]
[1746733793975,2.52082017,2096.7,2096.6,4.76962701]
[1746733794286,2.52082017,2096.7,2096.5,4.76973331]
[1746733794587,2.52082017,2096.7,2096.6,4.609]
[1746733794788,2.52082017,2096.7,2096.4,4.76996363]
[1746733794990,2.52082017,2096.7,2096.6,4.6]
[1746733795149,2.52082017,2096.7,2096.4,4.76996363]
[1746733795355,2.52082017,2096.7,2096.3,4.77025292]
[1746733795356,2.52082017,2096.7,2096.3,4.77026392]
[1746733795581,2.77290219,2096.7,2096.1,0.04769386]
[1746733795781,2.77290219,2096.7,2096.4,4.59]
[1746733796092,0.7775,2096.6,2096.3,0.04769674]
[1746733796295,0.7775,2096.6,2096.1,4.7706249]
[1746733796593,5.54721525,2096.6,2096.1,4.77064475]
[1746733796777,5.54721525,2096.6,2096.0,4.588]
[1746733796778,6.07883924,2096.5,2096.0,4.588]
[1746733796983,1.30896762,2096.5,2096.1,4.579]
[1746733797186,6.07882299,2096.5,2096.1,4.579]
[1746733797390,6.07882299,2096.5,2095.9,0.04770517]
[1746733797698,4.77018369,2096.4,2096.0,4.573]
[1746733797896,1.16265126,2096.4,2096.0,4.573]
[1746733798062,4.77002796,2096.5,2096.0,9.34386175]
[1746733798063,4.76996858,2096.5,2096.0,9.34386175]
[1746733798258,4.77008461,2096.4,2096.0,4.573]
[1746733798458,0.7775,2096.6,2096.1,4.561]
[1746733798664,4.77066629,2096.2,2096.1,4.56]
[1746733798885,4.77008204,2096.4,2095.6,17.188]
[1746733799194,4.77057213,2096.2,2095.7,4.557]
[1746733799409,4.77091132,2096.1,2095.6,21.95989612]
[1746733799570,4.77093097,2096.1,2095.7,4.553]
[1746733799775,4.77099491,2096.0,2095.7,4.553]
[1746733799972,4.77099491,2096.0,2095.5,4.77200397]
[1746733800173,1.03694639,2096.0,2095.5,0.04771518]
[1746733800405,0.8279,2096.2,2095.4,4.58871518]
[1746733800709,5.53349136,2095.7,2094.7,0.7788]
[1746733800862,0.7618,2095.1,2094.2,7.67476403]
[1746733801060,0.7618,2095.1,2094.0,3.5146051]
[1746733801061,4.77372541,2094.8,2094.0,3.5146051]
[1746733801293,4.77532114,2094.1,2094.0,3.12076403]
[1746733801497,4.77523159,2094.2,2094.0,3.12076403]
[1746733801764,4.77532114,2094.1,2094.0,3.12076403]
[1746733802234,4.77532114,2094.1,2093.5,0.43088174]
[1746733802235,4.77646159,2093.6,2093.5,0.43088174]
[1746733802419,4.77668975,2093.5,2093.4,4.17598716]
[1746733802602,8.81388488,2093.5,2093.4,4.17598716]
[1746733802927,14.77768488,2093.5,2093.4,1.53551685]
[1746733803225,5.59617435,2093.2,2093.1,5.1396765]
[1746733803933,5.5325321,2093.5,2093.1,5.1396765]
[1746733804128,4.77705697,2093.4,2093.1,5.1396765]
[1746733804328,5.53241338,2093.5,2092.6,4.603]
[1746733804507,4.77695793,2093.4,2092.9,4.77783725]
[1746733804713,0.7557,2093.5,2092.7,5.23875639]
[1746733804914,4.77699052,2093.4,2092.4,0.7777]
[1746733805235,4.77803258,2093.0,2092.4,5.55680604]
[1746733805404,4.77807134,2092.9,2092.3,4.77933103]
[1746733805600,4.77792129,2093.0,2092.4,4.82681137]
[1746733805818,5.32607344,2093.8,2092.4,4.82681137]
[1746733805819,0.8316,2093.9,2092.5,0.8079]
[1746733806050,5.60748324,2093.9,2092.8,3.0]
[1746733806218,5.60738297,2093.9,2093.4,4.77678455]
[1746733806417,5.60738297,2093.9,2093.3,4.77704356]
[1746733806636,4.77612181,2093.8,2093.3,4.77711313]
[1746733806840,4.77683339,2093.5,2093.0,0.0477686]
[1746733807135,0.8316,2093.9,2093.1,4.77749496]
[1746733807343,4.77642182,2093.7,2093.2,4.77734859]
[1746733807537,4.77609918,2093.8,2093.1,5.3378189]
[1746733807729,4.77644912,2093.7,2092.8,9.38528699]
[1746733807933,4.77665295,2093.6,2092.9,4.82583112]
[1746733808106,4.77607707,2093.8,2092.9,0.04777197]
[1746733808303,0.8316,2093.9,2093.1,0.7689]
[1746733808508,0.8316,2093.9,2093.2,4.82508268]
[1746733808706,0.8316,2093.9,2093.2,0.04776272]
[1746733808707,4.776275,2093.7,2093.2,0.04776272]
[1746733809031,0.56072168,2093.8,2092.8,9.44106014]
[1746733809233,4.77642042,2093.7,2093.1,4.77737908]
[1746733809413,4.77660178,2093.6,2093.1,4.82525048]
[1746733809608,0.8316,2093.9,2092.9,0.04776973]
[1746733809821,4.77659054,2093.6,2093.1,4.77756977]
[1746733810020,0.8316,2093.9,2093.1,4.82533996]
[1746733810233,4.77666843,2093.6,2093.1,0.99130419]
[1746733810563,4.77702805,2093.4,2092.9,4.82569932]
[1746733810844,4.77691001,2093.5,2092.7,4.606]
[1746733811051,5.32600534,2093.8,2092.7,4.606]
[1746733811052,4.7780356,2093.0,2092.7,4.606]
[1746733811254,4.77880565,2092.6,2092.1,9.149]
[1746733811455,4.77863913,2092.7,2092.2,6.30171222]
[1746733811656,4.77874414,2092.6,2091.7,4.7806973]
[1746733811828,4.77851579,2092.7,2091.7,4.7806973]
[1746733811829,4.77986565,2092.2,2091.7,4.7806973]
[1746733812033,4.77986565,2092.2,2091.8,4.78054911]
[1746733812240,4.77976716,2092.2,2091.7,4.78070376]
[1746733812440,4.7795263,2092.3,2091.8,4.78044158]
[1746733812664,4.77944598,2092.3,2091.8,4.78034595]
[1746733812831,0.7827,2092.4,2091.6,0.04779923]
[1746733813033,4.77988619,2092.2,2091.7,4.78070573]
[1746733813234,4.77952878,2092.3,2091.7,1.87267152]
[1746733813494,5.56194831,2092.4,2091.8,4.82824384]
[1746733813638,5.56194831,2092.4,2091.9,4.78024291]
[1746733813842,0.7827,2092.4,2092.0,4.78001804]
[1746733814036,4.549,2092.7,2091.8,0.04780427]
[1746733814037,0.7883,2092.8,2092.1,0.04779924]
[1746733814366,4.77803618,2093.0,2092.3,0.7859]
[1746733814529,0.55663362,2093.0,2092.3,0.7859]
[1746733814857,4.77825208,2092.9,2092.4,4.77908706]
[1746733815030,4.77838637,2092.8,2092.3,4.7793225]
[1746733815362,4.77760259,2093.1,2092.2,4.77954528]
[1746733815661,4.77884058,2092.6,2092.2,4.77965653]
[1746733815831,4.7790736,2092.5,2092.0,0.7724]
[1746733816027,4.7790736,2092.5,2092.1,4.77986852]
[1746733816356,4.77964771,2092.3,2091.8,4.78055281]
[1746733816532,5.81618903,2092.5,2092.0,4.77994789]
[1746733816875,5.81618903,2092.5,2091.8,4.78044088]
[1746733816876,1.03712142,2092.5,2091.8,4.78044088]
[1746733817162,4.77956835,2092.3,2091.8,4.78044088]
[1746733817364,0.8133,2092.6,2091.7,0.7576]
[1746733817571,4.77956597,2092.3,2091.9,4.78032921]
[1746733817875,4.77760259,2093.1,2091.8,4.78047126]
[1746733817876,0.005,2095.6,2094.8,0.8121]
[1746733818025,0.005,2095.6,2095.5,4.77213075]
[1746733818231,0.005,2095.6,2095.5,7.52598052]
[1746733818529,0.005,2095.6,2095.3,4.727]
[1746733818949,0.005,2095.6,2095.0,0.36373785]
[1746733819140,0.005,2095.6,2095.3,4.77255402]
[1746733819464,0.005,2095.6,2095.2,4.724]
[1746733819783,0.005,2095.6,2095.1,0.04772641]
[1746733820089,3.16611934,2095.6,2095.2,4.77266715]
[1746733820390,3.16611934,2095.6,2095.2,1.42596587]
[1746733820687,3.16611934,2095.6,2095.0,9.48710058]
[1746733821019,3.16611934,2095.6,2095.1,9.52663652]
[1746733821149,3.16611934,2095.6,2095.2,4.77279122]
[1746733821879,3.16611934,2095.6,2095.0,4.77319645]
[1746733822056,4.77213075,2095.5,2094.8,10.27373737]
[1746733822272,4.77243333,2095.4,2094.8,5.63351295]
[1746733822461,4.77243333,2095.4,2094.7,9.45883597]
[1746733822653,1.27100407,2095.5,2094.8,4.77369786]
[1746733822858,3.16611934,2095.6,2094.7,4.685]
[1746733823059,3.16611934,2095.6,2094.4,0.8093]
[1746733823060,0.005,2095.6,2094.4,0.8093]
[1746733823298,4.77235849,2095.4,2094.5,9.45329565]
[1746733823496,4.77320845,2095.1,2094.4,10.25884062]
[1746733823799,4.77297207,2095.2,2094.4,5.4843]
[1746733823954,0.95455583,2095.2,2094.5,4.77435364]
[1746733824155,0.005,2095.6,2094.8,4.77361726]
[1746733824482,0.005,2095.6,2094.6,4.7740455]
[1746733824483,4.77292786,2095.2,2094.6,4.7740455]
[1746733824691,0.005,2095.6,2094.5,4.77436507]
[1746733824904,4.77339037,2095.0,2094.4,10.25878922]
[1746733825098,4.77270069,2095.3,2094.4,5.4843]
[1746733825302,4.77297126,2095.2,2094.6,4.77416689]
[1746733825491,4.77323483,2095.1,2094.5,4.77430305]
[1746733825809,4.77323483,2095.1,2094.5,4.7743176]
[1746733826013,4.77307221,2095.1,2094.6,4.77406047]
[1746733826523,4.77285394,2095.2,2094.7,4.77387467]
[1746733826729,4.77216452,2095.5,2095.0,4.77310536]
[1746733827021,4.77700089,2095.6,2094.9,0.04772657]
[1746733827194,4.77700089,2095.6,2095.1,4.7729951]
[1746733827432,4.77299467,2095.2,2094.6,4.77395543]
[1746733827644,4.77309384,2095.1,2094.6,4.77395543]
[1746733828329,4.7735896,2094.9,2094.5,4.658]
[1746733828542,4.77338743,2095.0,2094.5,4.658]
[1746733828729,0.95460885,2095.1,2094.6,4.77417129]
[1746733828951,0.95460885,2095.1,2094.4,0.85704094]
[1746733828952,4.77329237,2095.0,2094.4,0.8093]
[1746733829252,4.77327038,2095.0,2094.6,4.77408754]
[1746733829455,4.77327038,2095.0,2094.5,4.77426086]
[1746733829616,4.77316087,2095.1,2094.7,4.77395218]
[1746733829952,4.77351108,2094.9,2094.6,0.04774048]
[1746733830155,4.77235849,2095.4,2094.4,5.4393]
[1746733830461,4.77497944,2094.3,2093.8,4.77595258]
[1746733830627,4.77450802,2094.5,2093.6,0.7796]
[1746733830816,4.701,2094.8,2093.6,0.7796]
[1746733831018,4.77418122,2094.6,2093.6,0.7796]
[1746733831332,4.77593711,2093.9,2093.6,5.4006]
[1746733831638,4.97034833,2093.8,2093.6,4.621]
[1746733831839,0.194325,2093.8,2093.6,4.621]
[1746733832455,0.194325,2093.8,2092.9,0.8103]
[1746733832456,4.77623346,2093.7,2092.9,0.8103]
[1746733832753,4.77706766,2093.4,2092.9,9.38589136]
[1746733832938,4.77751403,2093.2,2092.7,8.35088042]
[1746733833138,4.77751403,2093.2,2092.7,13.12918675]
[1746733833357,4.96527171,2093.1,2092.7,8.35088042]
[1746733833569,0.18753496,2093.1,2092.6,4.602]
[1746733833762,4.77817573,2092.9,2092.6,4.602]
[1746733833967,5.55112182,2093.2,2092.6,4.602]
[1746733834262,0.55511218,2093.1,2092.6,4.602]
[1746733834482,3.0,2094.1,2092.6,4.602]
[1746733834483,0.105,2095.6,2093.1,0.8213]
[1746733834643,0.05,2097.0,2095.9,0.8213]
[1746733834842,0.05,2097.0,2096.4,4.76997693]
[1746733835179,6.47117434,2096.7,2096.3,4.77015792]
[1746733835464,3.15493251,2096.6,2095.9,0.8213]
[1746733835769,4.76962701,2096.6,2095.1,5.6603]
[1746733835973,4.77071121,2096.2,2095.3,4.77258626]
[1746733836170,9.46984018,2096.1,2095.3,4.77258626]
[1746733836474,3.1679376,2096.7,2095.4,0.04771834]
[1746733836630,3.1679376,2096.7,2095.7,4.77151834]
[1746733836631,11.50484668,2096.6,2095.7,4.77151834]
[1746733836931,4.699,2096.5,2095.6,4.81939805]
[1746733837130,4.699,2096.5,2095.9,4.77106604]
[1746733837339,7.21982017,2096.7,2095.9,0.04771167]
[1746733837565,2.52082017,2096.7,2095.9,4.81890719]
[1746733837768,7.14730971,2096.6,2095.9,4.81890719]
[1746733838363,7.14730971,2096.6,2096.0,4.77089571]
[1746733838666,7.14730971,2096.6,2096.0,4.77095967]
[1746733838856,7.14730971,2096.6,2095.8,0.8032]
[1746733839164,2.52082017,2096.7,2096.0,4.7708182]
[1746733839363,2.52082017,2096.7,2096.1,4.81843695]
[1746733839567,2.52082017,2096.7,2096.3,4.77025071]
[1746733840145,2.52082017,2096.7,2096.2,4.77043479]
[1746733840779,2.52082017,2096.7,2096.3,4.77028415]
[1746733841087,0.12585315,2096.6,2096.2,4.77043669]
[1746733841289,0.12585315,2096.6,2096.5,4.76985451]
[1746733841473,2.52082017,2096.7,2096.6,4.76962701]
[1746733841658,2.52082017,2096.7,2096.4,5.54285125]
[1746733841980,0.12630441,2096.6,2096.4,0.7729]
[1746733842392,0.12630441,2096.6,2096.4,5.54290759]
[1746733842699,2.52082017,2096.7,2096.3,4.77029096]
[1746733842900,0.12630441,2096.6,2096.3,4.81798928]
[1746733843099,0.12630441,2096.6,2096.3,4.81800263]
[1746733843394,0.12630441,2096.6,2096.3,4.77020664]
[1746733844607,0.12630441,2096.6,2096.2,4.771]
[1746733844770,4.77018497,2096.4,2095.8,4.7713499]
[1746733844964,4.76996389,2096.5,2095.9,4.77120938]
[1746733845180,0.12521425,2096.3,2095.8,4.77132804]
[1746733845497,0.12485079,2096.2,2095.8,4.77132804]
[1746733845801,4.697,2096.3,2095.9,4.77120678]
[1746733846496,5.64370012,2096.3,2095.3,6.11]
[1746733846701,4.77085955,2096.1,2095.4,10.88216472]
[1746733846900,1.04081246,2096.6,2095.4,4.77235849]
[1746733847101,4.697,2096.3,2096.0,4.77089692]
[1746733847281,0.12485079,2096.2,2096.1,4.77076305]
[1746733847494,4.697,2096.3,2096.0,4.77088598]
[1746733847693,4.697,2096.3,2095.8,4.77138495]
[1746733847694,0.12485079,2096.2,2095.9,4.77115273]
[1746733847913,9.46734784,2096.3,2095.8,4.76630924]
[1746733848102,0.12485079,2096.2,2095.8,4.76630924]
[1746733848420,7.29024047,2096.7,2096.6,4.76962701]
[1746733848421,2.52082017,2096.7,2096.6,4.76962701]
[1746733848719,2.52082017,2096.7,2096.6,9.52062701]
[1746733849516,2.52082017,2096.7,2096.6,10.35741538]
[1746733849813,2.52082017,2096.7,2096.6,10.30684591]
[1746733850020,1.68752017,2096.7,2096.6,14.21053371]
[1746733850216,1.68752017,2096.7,2096.6,44.94214457]
[1746733850581,4.762,2098.0,2097.6,4.76720713]
[1746733850582,0.05,2098.0,2097.6,4.76720713]
[1746733850923,0.05,2098.0,2097.6,0.04766949]
[1746733851094,4.76669148,2097.9,2097.5,4.73]
[1746733851294,0.05,2098.0,2097.7,4.76709063]
[1746733851620,0.05,2098.0,2097.6,4.76735316]
[1746733851792,0.05,2098.0,2097.5,4.73]
[1746733851993,4.76667143,2097.9,2097.4,4.70438161]
[1746733852194,5.29811066,2098.0,2097.0,0.7636]
[1746733852195,4.76751371,2097.6,2097.0,0.7636]
[1746733852390,4.76792688,2097.4,2096.9,4.76888974]
[1746733852621,4.76807002,2097.3,2096.8,9.49611414]
[1746733852993,4.711,2097.7,2097.2,4.76805009]
[1746733853315,4.7670243,2097.8,2097.3,4.76798778]
[1746733853501,4.7670243,2097.8,2096.9,9.49293798]
[1746733853502,9.4777587,2097.9,2097.4,4.76777478]
[1746733853911,9.47676776,2097.9,2097.4,4.76767804]
[1746733854093,4.76689865,2097.8,2096.9,4.724]
[1746733854293,4.767771,2097.5,2097.0,4.81636952]
[1746733854502,0.95352062,2097.5,2096.8,4.716]
[1746733854799,4.7677946,2097.5,2096.9,4.7687771]
[1746733854984,4.7677946,2097.5,2097.0,4.7685652]
[1746733855185,4.71,2097.9,2097.1,4.7684847]
[1746733855385,4.76731381,2097.7,2097.2,0.04768131]
[1746733855585,4.71,2097.9,2097.1,4.707]
[1746733855828,4.76699751,2097.8,2097.3,4.76789739]
[1746733855990,4.89025471,2097.8,2097.3,4.76789739]
[1746733856190,0.1232572,2097.8,2097.1,4.707]
[1746733856429,4.76715257,2097.7,2097.3,0.8053]
[1746733856610,4.76715257,2097.7,2096.6,11.70456822]
[1746733856611,5.25658518,2097.6,2097.1,4.697]
[1746733856793,5.36924761,2097.6,2097.1,4.76833569]
[1746733856993,0.60170341,2097.6,2097.3,4.76794416]
[1746733857194,0.11266243,2097.6,2097.0,9.46166554]
[1746733857429,0.11266243,2097.6,2097.2,4.76809201]
[1746733857629,4.76734807,2097.7,2097.2,9.45912261]
[1746733857947,0.11268758,2097.6,2096.9,5.57421836]
[1746733858150,0.11268758,2097.6,2097.2,4.76813851]
[1746733858349,0.11268758,2097.6,2097.4,4.76771872]
[1746733858551,0.11268758,2097.6,2097.1,4.694]
[1746733858848,4.76735468,2097.6,2097.2,4.76812881]
[1746733859037,0.1124,2097.5,2097.3,4.76797211]
[1746733859346,4.76736367,2097.6,2097.1,4.76841217]
[1746733859535,5.24440217,2097.5,2097.2,4.678]
[1746733859731,4.87985107,2097.4,2096.9,4.76881172]
[1746733860056,4.768059,2097.3,2096.9,4.76885937]
[1746733860347,0.11136106,2097.2,2096.6,0.3536878]
[1746733860509,9.47705042,2097.3,2096.2,4.77033176]
[1746733860709,4.76848981,2097.1,2096.1,4.666]
[1746733860914,1.13495423,2097.2,2096.1,9.43657333]
[1746733860915,4.76972576,2096.6,2096.1,9.43657333]
[1746733861147,0.10424943,2096.5,2096.1,4.666]
[1746733861323,4.76866501,2097.1,2096.6,4.76951368]
[1746733861520,0.10526277,2097.0,2096.6,4.76946373]
[1746733861741,4.76896709,2096.9,2096.5,4.76985046]
[1746733861939,0.10301484,2096.8,2096.1,9.79201739]
[1746733862129,0.10301484,2096.8,2096.5,4.7697309]
[1746733862325,0.10301484,2096.8,2096.5,4.7697783]
[1746733862546,4.87228531,2096.8,2096.3,4.77014444]
[1746733862858,4.87235722,2096.8,2096.3,4.77018988]
[1746733863049,0.10301484,2096.8,2096.4,4.77002436]
[1746733863242,4.87221083,2096.8,2096.3,4.77021281]
[1746733863430,4.87221083,2096.8,2096.3,4.77014386]
[1746733863635,4.87221083,2096.8,2096.4,4.77006128]
[1746733863838,0.10301484,2096.8,2096.5,6.11]
[1746733864132,4.76863553,2097.1,2096.5,10.87978939]
[1746733864333,4.76893061,2097.0,2096.6,0.4297802]
[1746733864540,4.76893061,2097.0,2096.6,11.30939129]
[1746733864739,4.76880672,2097.0,2096.6,11.30937584]
[1746733865035,4.76894463,2096.9,2096.6,6.5397802]